fUSD/lending_fUSD_20260530
["ID","MTS","AMOUNT","RATE_DAILY","PERIOD"]
[423428789,1780109438000,-500.0,0.00013697,9]
[423428795,1780109438000,-500.0,0.00013698,2]
[423428778,1780109438000,-150.0,0.00013532,2]
[423428815,1780109438000,-500.0,0.00013698,2]
[423428819,1780109438000,-500.0,0.00013698,2]
[423428800,1780109438000,-500.0,0.00013698,2]
[423428810,1780109438000,-500.0,0.00013698,2]
[423428812,1780109438000,-500.0,0.00013698,2]
[423428806,1780109438000,-500.0,0.00013698,2]
[423428808,1780109438000,-500.0,0.00013698,2]
[423428804,1780109438000,-500.0,0.00013698,2]
[423428793,1780109438000,-500.0,0.00013698,2]
[423428797,1780109438000,-500.0,0.00013698,2]
[423428791,1780109438000,-574.57860626,0.00013698,2]
[423428802,1780109438000,-500.0,0.00013698,2]
[423428895,1780109439000,-650.83,0.00013698,2]
[423428897,1780109439000,-607.1,0.00013698,2]
[423428903,1780109439000,-500.0,0.00013698,2]
[423428898,1780109439000,-607.1,0.00013698,2]
[423428896,1780109439000,-607.1,0.00013698,2]
[423428884,1780109439000,-521.78,0.00013698,2]
[423428886,1780109439000,-627.33,0.00013698,2]
[423428893,1780109439000,-650.83,0.00013698,2]
[423428894,1780109439000,-650.83,0.00013698,2]
[423428901,1780109439000,-500.0,0.00013698,2]
[423428890,1780109439000,-669.38,0.00013698,2]
[423428899,1780109439000,-500.0,0.00013698,2]
[423428915,1780109439000,-1095.66597844,0.00013699,2]
[423428902,1780109439000,-500.0,0.00013698,2]
[423428905,1780109439000,-1309.98,0.00013698,2]
[423428904,1780109439000,-1309.98,0.00013698,2]
[423428906,1780109439000,-500.0,0.00013698,2]
[423428907,1780109439000,-295.37631974,0.00013698,2]
[423428908,1780109439000,-2500.0,0.00013699,2]
[423428909,1780109439000,-166.66,0.00013699,2]
[423428912,1780109439000,-1095.66597844,0.00013699,2]
[423428913,1780109439000,-1095.66597844,0.00013699,2]
[423428914,1780109439000,-1095.66597844,0.00013699,2]
[423428910,1780109439000,-200.0,0.00013699,2]
[423428889,1780109439000,-500.0,0.00013698,2]
[423428900,1780109439000,-500.0,0.00013698,2]
[423428887,1780109439000,-627.33,0.00013698,2]
[423428861,1780109439000,-583.17,0.00013698,2]
[423428885,1780109439000,-521.78,0.00013698,2]
[423428911,1780109439000,-400.0,0.00013699,2]
[423428862,1780109439000,-583.17,0.00013698,2]
[423428865,1780109439000,-500.0,0.00013698,2]
[423428864,1780109439000,-500.0,0.00013698,2]
[423428863,1780109439000,-583.17,0.00013698,2]
[423428872,1780109439000,-500.0,0.00013698,2]
[423428866,1780109439000,-500.0,0.00013698,2]
[423428867,1780109439000,-500.0,0.00013698,2]
[423428868,1780109439000,-500.0,0.00013698,2]
[423428869,1780109439000,-500.0,0.00013698,2]
[423428870,1780109439000,-500.0,0.00013698,2]
[423428871,1780109439000,-266.90977676,0.00013698,2]
[423428874,1780109439000,-500.0,0.00013698,2]
[423428873,1780109439000,-500.0,0.00013698,2]
[423428877,1780109439000,-521.78,0.00013698,2]
[423428875,1780109439000,-553.36280109,0.00013698,2]
[423428876,1780109439000,-521.78,0.00013698,2]
[423428878,1780109439000,-521.78,0.00013698,2]
[423428879,1780109439000,-521.78,0.00013698,2]
[423428882,1780109439000,-521.78,0.00013698,2]
[423428883,1780109439000,-521.78,0.00013698,2]
[423428881,1780109439000,-521.78,0.00013698,2]
[423428880,1780109439000,-521.78,0.00013698,2]
[423428888,1780109439000,-500.0,0.00013698,2]
[423428892,1780109439000,-669.38,0.00013698,2]
[423428891,1780109439000,-669.38,0.00013698,2]
[423428916,1780109439000,-1095.66597844,0.00013699,2]
[423428950,1780109439000,-1095.66597844,0.00013699,2]
[423428920,1780109439000,-1095.66597844,0.00013699,2]
[423428943,1780109439000,-1095.66597844,0.00013699,2]
[423428944,1780109439000,-1095.66597844,0.00013699,2]
[423428945,1780109439000,-1095.66597844,0.00013699,2]
[423428952,1780109439000,-1095.66597844,0.00013699,2]
[423428955,1780109439000,-1095.66597844,0.00013699,2]
[423428957,1780109439000,-1095.66597844,0.00013699,2]
[423428962,1780109439000,-1095.66597844,0.00013699,2]
[423428959,1780109439000,-1095.66597844,0.00013699,2]
[423428953,1780109439000,-1095.66597844,0.00013699,2]
[423428964,1780109439000,-1095.66597844,0.00013699,2]
[423428965,1780109439000,-1095.66597844,0.00013699,2]
[423428966,1780109439000,-1095.66597844,0.00013699,2]
[423428968,1780109439000,-1095.66597844,0.00013699,2]
[423428967,1780109439000,-1095.66597844,0.00013699,2]
[423428969,1780109439000,-1095.66597844,0.00013699,2]
[423428971,1780109439000,-150.0,0.00013708,2]
[423428975,1780109439000,-500.0,0.00013781,10]
[423428970,1780109439000,-1095.66597844,0.00013699,2]
[423428974,1780109439000,-150.0,0.00013752,2]
[423428979,1780109439000,-500.0,0.00013781,2]
[423428976,1780109439000,-500.0,0.00013781,11]
[423428917,1780109439000,-1095.66597844,0.00013699,2]
[423428973,1780109439000,-150.0,0.00013737,2]
[423428978,1780109439000,-500.0,0.00013781,2]
[423428977,1780109439000,-500.0,0.00013781,12]
[423428946,1780109439000,-1095.66597844,0.00013699,2]
[423428949,1780109439000,-1095.66597844,0.00013699,2]
[423428972,1780109439000,-150.0,0.00013737,2]
[423428942,1780109439000,-1095.66597844,0.00013699,2]
[423428948,1780109439000,-1095.66597844,0.00013699,2]
[423428919,1780109439000,-1095.66597844,0.00013699,2]
[423428921,1780109439000,-1095.66597844,0.00013699,2]
[423428925,1780109439000,-1095.66597844,0.00013699,2]
[423428927,1780109439000,-1095.66597844,0.00013699,2]
[423428923,1780109439000,-1095.66597844,0.00013699,2]
[423428926,1780109439000,-1095.66597844,0.00013699,2]
[423428922,1780109439000,-1095.66597844,0.00013699,2]
[423428924,1780109439000,-1095.66597844,0.00013699,2]
[423428928,1780109439000,-1095.66597844,0.00013699,2]
[423428931,1780109439000,-1095.66597844,0.00013699,2]
[423428932,1780109439000,-1095.66597844,0.00013699,2]
[423428918,1780109439000,-1095.66597844,0.00013699,2]
[423428935,1780109439000,-1095.66597844,0.00013699,2]
[423428939,1780109439000,-1095.66597844,0.00013699,2]
[423428951,1780109439000,-1095.66597844,0.00013699,2]
[423428941,1780109439000,-1095.66597844,0.00013699,2]
[423428936,1780109439000,-1095.66597844,0.00013699,2]
[423428934,1780109439000,-1095.66597844,0.00013699,2]
[423428940,1780109439000,-1095.66597844,0.00013699,2]
[423428938,1780109439000,-1095.66597844,0.00013699,2]
[423428930,1780109439000,-1095.66597844,0.00013699,2]
[423428937,1780109439000,-1095.66597844,0.00013699,2]
[423428929,1780109439000,-1095.66597844,0.00013699,2]
[423428933,1780109439000,-1095.66597844,0.00013699,2]
[423428947,1780109439000,-1095.66597844,0.00013699,2]
[423429008,1780109440000,-20101.69531695,0.0001399,2]
[423429011,1780109440000,-150.0,0.0001405,2]
[423429006,1780109440000,-150.0,0.00013987,2]
[423429007,1780109440000,-160.56,0.00013988,2]
[423429015,1780109440000,-166.66,0.0001411,2]
[423429014,1780109440000,-384.0,0.00014107,2]
[423429009,1780109440000,-250.0,0.00014,2]
[423429016,1780109440000,-150.0,0.00014149,2]
[423429012,1780109440000,-150.0,0.00014061,2]
[423429013,1780109440000,-150.0,0.00014105,2]
[423429017,1780109440000,-270.09899084,0.00014166,2]
[423429018,1780109440000,-500.0,0.00014177,13]
[423429022,1780109440000,-500.0,0.00014178,2]
[423429028,1780109440000,-150.0,0.00014237,2]
[423429026,1780109440000,-150.0,0.00014237,2]
[423429027,1780109440000,-150.0,0.00014237,2]
[423429020,1780109440000,-500.0,0.00014178,2]
[423429019,1780109440000,-500.0,0.00014178,2]
[423429024,1780109440000,-779.188,0.00014178,2]
[423429005,1780109440000,-150.0,0.00013987,2]
[423429010,1780109440000,-150.0,0.00014017,2]
[423429003,1780109440000,-166.66,0.00013973,2]
[423428988,1780109440000,-583.17,0.00013781,2]
[423429002,1780109440000,-150.0,0.00013973,2]
[423428981,1780109440000,-500.0,0.00013781,2]
[423428980,1780109440000,-500.0,0.00013781,2]
[423428983,1780109440000,-500.0,0.00013781,2]
[423428990,1780109440000,-521.78,0.00013781,2]
[423428986,1780109440000,-583.17,0.00013781,2]
[423428989,1780109440000,-521.78,0.00013781,2]
[423428982,1780109440000,-500.0,0.00013781,2]
[423428984,1780109440000,-500.0,0.00013781,2]
[423428993,1780109440000,-2000.0,0.00013833,2]
[423428987,1780109440000,-583.17,0.00013781,2]
[423428985,1780109440000,-497.78987791,0.00013781,2]
[423428992,1780109440000,-150.0,0.00013796,2]
[423428991,1780109440000,-521.78,0.00013781,2]
[423428995,1780109440000,-150.0,0.0001384,2]
[423429001,1780109440000,-1527.17170779,0.00013956,2]
[423428997,1780109440000,-150.0,0.00013862,2]
[423429004,1780109440000,-150.0,0.00013987,2]
[423428998,1780109440000,-150.0,0.00013884,2]
[423429000,1780109440000,-162.46,0.00013929,2]
[423428996,1780109440000,-150.0,0.00013862,2]
[423428994,1780109440000,-166.66,0.00013836,2]
[423428999,1780109440000,-150.0,0.00013928,2]
[423429025,1780109440000,-150.0,0.00014193,2]
[423429031,1780109440000,-166.66,0.00014247,2]
[423429021,1780109440000,-500.0,0.00014178,2]
[423429067,1780109440000,-150.0,0.00014766,2]
[423429068,1780109440000,-150.0,0.00014799,2]
[423429063,1780109440000,-259.768,0.00014737,2]
[423429055,1780109440000,-500.0,0.0001472,2]
[423429059,1780109440000,-150.0,0.00014722,2]
[423429053,1780109440000,-150.0,0.00014678,2]
[423429057,1780109440000,-583.17,0.0001472,2]
[423429061,1780109440000,-150.0,0.00014737,2]
[423429062,1780109440000,-3279.253,0.00014737,2]
[423429058,1780109440000,-521.78,0.0001472,2]
[423429060,1780109440000,-150.0,0.00014737,2]
[423429069,1780109440000,-150.0,0.0001481,2]
[423429074,1780109440000,-150.0,0.00014854,2]
[423429071,1780109440000,-981.63781,0.0001485,2]
[423429072,1780109440000,-981.63781,0.0001485,2]
[423429079,1780109440000,-1525.38,0.00014872,2]
[423429077,1780109440000,-2000.0,0.00014864,2]
[423429075,1780109440000,-500.0,0.00014856,2]
[423429076,1780109440000,-981.63781,0.0001486,2]
[423429078,1780109440000,-529.18,0.00014864,2]
[423429023,1780109440000,-500.0,0.00014178,2]
[423429065,1780109440000,-152.0,0.0001476,3]
[423429054,1780109440000,-500.0,0.0001472,2]
[423429070,1780109440000,-200.0,0.00014828,2]
[423429043,1780109440000,-150.0,0.00014457,2]
[423429047,1780109440000,-150.0,0.00014501,2]
[423429029,1780109440000,-150.0,0.00014237,2]
[423429032,1780109440000,-150.0,0.00014281,2]
[423429030,1780109440000,-150.0,0.00014237,2]
[423429034,1780109440000,-150.0,0.00014369,2]
[423429038,1780109440000,-500.0,0.00014452,2]
[423429039,1780109440000,-500.0,0.00014452,2]
[423429036,1780109440000,-150.0,0.00014413,2]
[423429037,1780109440000,-150.0,0.00014424,2]
[423429033,1780109440000,-150.0,0.00014325,2]
[423429035,1780109440000,-166.66,0.00014384,2]
[423429041,1780109440000,-500.0,0.00014452,2]
[423429051,1780109440000,-150.0,0.00014612,2]
[423429050,1780109440000,-150.0,0.00014612,2]
[423429052,1780109440000,-150.0,0.00014634,2]
[423429045,1780109440000,-150.0,0.00014487,2]
[423429042,1780109440000,-556.0,0.00014452,2]
[423429046,1780109440000,-150.0,0.00014487,2]
[423429044,1780109440000,-150.0,0.00014487,2]
[423429048,1780109440000,-150.0,0.00014546,2]
[423429040,1780109440000,-500.0,0.00014452,2]
[423429049,1780109440000,-150.0,0.0001459,2]
[423429124,1780109441000,-500.0,0.00014995,2]
[423429121,1780109441000,-650.83,0.00014995,2]
[423429120,1780109441000,-650.83,0.00014995,2]
[423429122,1780109441000,-607.1,0.00014995,2]
[423429117,1780109441000,-246.41293601,0.00014986,2]
[423429116,1780109441000,-174.11793133,0.00014986,2]
[423429111,1780109441000,-150.0,0.00014985,2]
[423429113,1780109441000,-232.60106033,0.00014986,2]
[423429112,1780109441000,-163.71718505,0.00014986,2]
[423429123,1780109441000,-607.1,0.00014995,2]
[423429115,1780109441000,-273.46900396,0.00014986,2]
[423429118,1780109441000,-669.38,0.00014995,2]
[423429125,1780109441000,-500.0,0.00014995,2]
[423429134,1780109441000,-650.83,0.00014997,2]
[423429126,1780109441000,-530257.5226868,0.00014996,2]
[423429128,1780109441000,-151.0,0.00014997,2]
[423429129,1780109441000,-915.98,0.00014997,2]
[423429127,1780109441000,-12764.7805846,0.00014996,2]
[423429131,1780109441000,-627.33,0.00014997,2]
[423429132,1780109441000,-500.0,0.00014997,2]
[423429142,1780109441000,-1653.1611233,0.00014998,2]
[423429143,1780109441000,-500.0,0.00014998,15]
[423429144,1780109441000,-500.0,0.00014998,2]
[423429133,1780109441000,-669.38,0.00014997,2]
[423429135,1780109441000,-607.1,0.00014997,2]
[423429136,1780109441000,-380.90447041,0.00014997,2]
[423429114,1780109441000,-217.54708937,0.00014986,2]
[423429130,1780109441000,-500.0,0.00014997,2]
[423429110,1780109441000,-150.0,0.00014942,2]
[423429085,1780109441000,-500.0,0.00014882,2]
[423429109,1780109441000,-703.68,0.00014933,2]
[423429081,1780109441000,-163.0,0.0001488,2]
[423429080,1780109441000,-500.0,0.00014873,14]
[423429082,1780109441000,-669.38,0.00014882,2]
[423429088,1780109441000,-150.0,0.00014898,2]
[423429092,1780109441000,-521.78,0.00014899,2]
[423429138,1780109441000,-1309.98,0.00014997,2]
[423429089,1780109441000,-500.0,0.00014899,2]
[423429086,1780109441000,-25000.0,0.00014882,3]
[423429083,1780109441000,-650.83,0.00014882,2]
[423429084,1780109441000,-607.1,0.00014882,2]
[423429095,1780109441000,-16984.95549251,0.000149,3]
[423429093,1780109441000,-154.61916634,0.000149,2]
[423429091,1780109441000,-583.17,0.00014899,2]
[423429087,1780109441000,-25000.0,0.00014891,3]
[423429090,1780109441000,-500.0,0.00014899,2]
[423429096,1780109441000,-7702.33723438,0.000149,2]
[423429101,1780109441000,-8228.59595473,0.000149,2]
[423429097,1780109441000,-10000.0,0.000149,2]
[423429100,1780109441000,-25000.0,0.000149,3]
[423429098,1780109441000,-5000.0,0.000149,2]
[423429107,1780109441000,-400.0,0.00014925,2]
[423429103,1780109441000,-3504.05220938,0.000149,2]
[423429105,1780109441000,-11982.85067706,0.000149,2]
[423429102,1780109441000,-605.60164503,0.000149,2]
[423429106,1780109441000,-400.0,0.00014925,2]
[423429104,1780109441000,-270.09899084,0.000149,2]
[423429108,1780109441000,-877.91,0.00014929,2]
[423429119,1780109441000,-669.38,0.00014995,2]
[423429139,1780109441000,-8167.504949,0.00014998,2]
[423429099,1780109441000,-25000.0,0.000149,3]
[423429137,1780109441000,-500.0,0.00014997,2]
[423429179,1780109441000,-915.98,0.00014999,2]
[423429180,1780109441000,-915.98,0.00014999,2]
[423429174,1780109441000,-915.98,0.00014999,2]
[423429178,1780109441000,-915.98,0.00014999,2]
[423429171,1780109441000,-500.0,0.00014999,2]
[423429199,1780109441000,-583.17,0.00014999,2]
[423429182,1780109441000,-915.98,0.00014999,2]
[423429181,1780109441000,-915.98,0.00014999,2]
[423429194,1780109441000,-916.06100248,0.00014999,2]
[423429184,1780109441000,-915.98,0.00014999,2]
[423429183,1780109441000,-915.98,0.00014999,2]
[423429188,1780109441000,-915.98,0.00014999,2]
[423429192,1780109441000,-915.98,0.00014999,2]
[423429185,1780109441000,-915.98,0.00014999,2]
[423429187,1780109441000,-915.98,0.00014999,2]
[423429189,1780109441000,-915.98,0.00014999,2]
[423429191,1780109441000,-915.98,0.00014999,2]
[423429186,1780109441000,-915.98,0.00014999,2]
[423429190,1780109441000,-915.98,0.00014999,2]
[423429193,1780109441000,-915.98,0.00014999,2]
[423429197,1780109441000,-500.0,0.00014999,2]
[423429201,1780109441000,-583.17,0.00014999,2]
[423429195,1780109441000,-500.0,0.00014999,2]
[423429198,1780109441000,-627.391729,0.00014999,2]
[423429202,1780109441000,-583.17,0.00014999,2]
[423429200,1780109441000,-583.17,0.00014999,2]
[423429141,1780109441000,-155128.065463,0.00014998,2]
[423429175,1780109441000,-915.98,0.00014999,2]
[423429173,1780109441000,-478.17553055,0.00014999,2]
[423429196,1780109441000,-500.0,0.00014999,2]
[423429176,1780109441000,-915.98,0.00014999,2]
[423429140,1780109441000,-5001.1626509,0.00014998,2]
[423429177,1780109441000,-915.98,0.00014999,2]
[423429146,1780109441000,-583.17,0.00014998,2]
[423429148,1780109441000,-152.0,0.00014999,4]
[423429150,1780109441000,-500.0,0.00014999,17]
[423429147,1780109441000,-521.78,0.00014998,2]
[423429145,1780109441000,-500.0,0.00014998,2]
[423429153,1780109441000,-500.0,0.00014999,20]
[423429154,1780109441000,-500.0,0.00014999,21]
[423429156,1780109441000,-500.0,0.00014999,21]
[423429149,1780109441000,-500.0,0.00014999,16]
[423429151,1780109441000,-500.0,0.00014999,18]
[423429155,1780109441000,-500.0,0.00014999,21]
[423429157,1780109441000,-500.0,0.00014999,21]
[423429152,1780109441000,-500.0,0.00014999,19]
[423429167,1780109441000,-500.0,0.00014999,2]
[423429158,1780109441000,-500.0,0.00014999,21]
[423429172,1780109441000,-500.0,0.00014999,2]
[423429165,1780109441000,-500.0,0.00014999,2]
[423429160,1780109441000,-500.0,0.00014999,21]
[423429159,1780109441000,-500.0,0.00014999,21]
[423429164,1780109441000,-500.0,0.00014999,2]
[423429170,1780109441000,-500.0,0.00014999,2]
[423429163,1780109441000,-470.11392164,0.00014999,21]
[423429162,1780109441000,-500.0,0.00014999,21]
[423429166,1780109441000,-500.0,0.00014999,2]
[423429169,1780109441000,-244.74519264,0.00014999,2]
[423429168,1780109441000,-500.0,0.00014999,2]
[423429161,1780109441000,-500.0,0.00014999,21]
[423429234,1780109442000,-627.33,0.00014999,2]
[423429240,1780109442000,-500.0,0.00014999,2]
[423429230,1780109442000,-627.33,0.00014999,2]
[423429232,1780109442000,-627.33,0.00014999,2]
[423429233,1780109442000,-627.33,0.00014999,2]
[423429236,1780109442000,-500.0,0.00014999,2]
[423429238,1780109442000,-500.0,0.00014999,2]
[423429239,1780109442000,-500.0,0.00014999,2]
[423429241,1780109442000,-500.0,0.00014999,2]
[423429231,1780109442000,-627.33,0.00014999,2]
[423429247,1780109442000,-669.38,0.00014999,2]
[423429242,1780109442000,-500.0,0.00014999,2]
[423429243,1780109442000,-500.0,0.00014999,2]
[423429244,1780109442000,-512.54439461,0.00014999,2]
[423429245,1780109442000,-150.0,0.00014999,2]
[423429253,1780109442000,-669.38,0.00014999,2]
[423429251,1780109442000,-669.38,0.00014999,2]
[423429250,1780109442000,-669.38,0.00014999,2]
[423429255,1780109442000,-669.38,0.00014999,2]
[423429249,1780109442000,-669.38,0.00014999,2]
[423429246,1780109442000,-669.38,0.00014999,2]
[423429235,1780109442000,-627.42183176,0.00014999,2]
[423429252,1780109442000,-669.38,0.00014999,2]
[423429237,1780109442000,-500.0,0.00014999,2]
[423429229,1780109442000,-627.33,0.00014999,2]
[423429217,1780109442000,-627.33,0.00014999,2]
[423429228,1780109442000,-627.33,0.00014999,2]
[423429254,1780109442000,-669.38,0.00014999,2]
[423429206,1780109442000,-583.30071349,0.00014999,2]
[423429207,1780109442000,-521.78,0.00014999,2]
[423429203,1780109442000,-583.17,0.00014999,2]
[423429204,1780109442000,-583.17,0.00014999,2]
[423429205,1780109442000,-583.17,0.00014999,2]
[423429209,1780109442000,-521.78,0.00014999,2]
[423429220,1780109442000,-627.33,0.00014999,2]
[423429219,1780109442000,-627.33,0.00014999,2]
[423429221,1780109442000,-627.33,0.00014999,2]
[423429210,1780109442000,-521.78,0.00014999,2]
[423429223,1780109442000,-627.33,0.00014999,2]
[423429208,1780109442000,-521.78,0.00014999,2]
[423429214,1780109442000,-521.96099601,0.00014999,2]
[423429216,1780109442000,-627.33,0.00014999,2]
[423429215,1780109442000,-627.33,0.00014999,2]
[423429211,1780109442000,-521.78,0.00014999,2]
[423429213,1780109442000,-521.78,0.00014999,2]
[423429218,1780109442000,-627.33,0.00014999,2]
[423429222,1780109442000,-627.33,0.00014999,2]
[423429224,1780109442000,-627.33,0.00014999,2]
[423429225,1780109442000,-627.33,0.00014999,2]
[423429226,1780109442000,-627.33,0.00014999,2]
[423429227,1780109442000,-627.33,0.00014999,2]
[423429212,1780109442000,-521.78,0.00014999,2]
[423429248,1780109442000,-669.38,0.00014999,2]
[423429273,1780109442000,-650.83,0.00014999,2]
[423429258,1780109442000,-669.38,0.00014999,2]
[423429287,1780109442000,-607.1,0.00014999,2]
[423429293,1780109442000,-607.1,0.00014999,2]
[423429289,1780109442000,-607.1,0.00014999,2]
[423429292,1780109442000,-607.1,0.00014999,2]
[423429284,1780109442000,-607.1,0.00014999,2]
[423429294,1780109442000,-607.1,0.00014999,2]
[423429256,1780109442000,-669.38,0.00014999,2]
[423429295,1780109442000,-607.1,0.00014999,2]
[423429297,1780109442000,-607.1,0.00014999,2]
[423429298,1780109442000,-607.29390042,0.00014999,2]
[423429301,1780109442000,-1309.98,0.00014999,2]
[423429300,1780109442000,-1309.98,0.00014999,2]
[423429299,1780109442000,-410.30161227,0.00014999,2]
[423429302,1780109442000,-1309.98,0.00014999,2]
[423429304,1780109442000,-1309.98,0.00014999,2]
[423429303,1780109442000,-1309.98,0.00014999,2]
[423429305,1780109442000,-1309.98,0.00014999,2]
[423429306,1780109442000,-1309.98,0.00014999,2]
[423429308,1780109442000,-1309.98,0.00014999,2]
[423429310,1780109442000,-1309.98,0.00014999,2]
[423429309,1780109442000,-1309.98,0.00014999,2]
[423429311,1780109442000,-1309.98,0.00014999,2]
[423429307,1780109442000,-1309.98,0.00014999,2]
[423429291,1780109442000,-607.1,0.00014999,2]
[423429285,1780109442000,-607.1,0.00014999,2]
[423429296,1780109442000,-607.1,0.00014999,2]
[423429290,1780109442000,-607.1,0.00014999,2]
[423429269,1780109442000,-650.83,0.00014999,2]
[423429257,1780109442000,-669.38,0.00014999,2]
[423429288,1780109442000,-607.1,0.00014999,2]
[423429261,1780109442000,-669.38,0.00014999,2]
[423429262,1780109442000,-669.57046541,0.00014999,2]
[423429263,1780109442000,-650.83,0.00014999,2]
[423429260,1780109442000,-669.38,0.00014999,2]
[423429265,1780109442000,-650.83,0.00014999,2]
[423429267,1780109442000,-650.83,0.00014999,2]
[423429266,1780109442000,-650.83,0.00014999,2]
[423429264,1780109442000,-650.83,0.00014999,2]
[423429271,1780109442000,-650.83,0.00014999,2]
[423429259,1780109442000,-669.38,0.00014999,2]
[423429281,1780109442000,-650.94879675,0.00014999,2]
[423429282,1780109442000,-607.1,0.00014999,2]
[423429286,1780109442000,-607.1,0.00014999,2]
[423429280,1780109442000,-650.83,0.00014999,2]
[423429279,1780109442000,-650.83,0.00014999,2]
[423429278,1780109442000,-650.83,0.00014999,2]
[423429283,1780109442000,-607.1,0.00014999,2]
[423429272,1780109442000,-650.83,0.00014999,2]
[423429276,1780109442000,-650.83,0.00014999,2]
[423429275,1780109442000,-650.83,0.00014999,2]
[423429270,1780109442000,-650.83,0.00014999,2]
[423429274,1780109442000,-650.83,0.00014999,2]
[423429321,1780109443000,-300.0,0.00014999,2]
[423429327,1780109443000,-419.17316,0.00015,2]
[423429328,1780109443000,-402.00835186,0.00015,2]
[423429324,1780109443000,-307.16575562,0.00014999,2]
[423429326,1780109443000,-736.66604106,0.00015,2]
[423429325,1780109443000,-7025463.47127298,0.00015,2]
[423429322,1780109443000,-300.0,0.00014999,2]
[423429320,1780109443000,-1310.09525507,0.00014999,2]
[423429316,1780109443000,-1309.98,0.00014999,2]
[423429319,1780109443000,-1309.98,0.00014999,2]
[423429318,1780109443000,-1309.98,0.00014999,2]
[423429313,1780109443000,-1309.98,0.00014999,2]
[423429315,1780109443000,-1309.98,0.00014999,2]
[423429314,1780109443000,-1309.98,0.00014999,2]
[423429317,1780109443000,-1309.98,0.00014999,2]
[423429312,1780109443000,-1309.98,0.00014999,2]
[423429329,1780109443000,-4614.50864661,0.00015,2]
[423429323,1780109443000,-300.0,0.00014999,2]
[423429330,1780109443000,-1920.88549741,0.00015,2]
[423429355,1780109443000,-4297.31,0.00014999,2]
[423429332,1780109443000,-1999.16196732,0.00015,2]
[423429331,1780109443000,-219236.36290811,0.00015,2]
[423429352,1780109443000,-1168.30654348,0.00014997,2]
[423429358,1780109443000,-467.97099624,0.00014999,2]
[423429356,1780109443000,-4297.31,0.00014999,2]
[423429357,1780109443000,-5755062.32816566,0.00015,2]
[423429354,1780109443000,-4297.31,0.00014999,2]
[423429350,1780109443000,-436.19646076,0.00014997,2]
[423429351,1780109443000,-1618.76632722,0.00014997,2]
[423429353,1780109443000,-4297.31,0.00014999,2]
[423429348,1780109443000,-1527.17170779,0.000149,2]
[423429345,1780109443000,-959.37255751,0.00013698,2]
[423429347,1780109443000,-4297.31,0.00013698,2]
[423429346,1780109443000,-898.4807513,0.00013698,2]
[423429343,1780109443000,-1939.45669119,0.00013698,2]
[423429344,1780109443000,-500.0,0.00013698,2]
[423429334,1780109443000,-673360.80919181,0.00015,2]
[423429333,1780109443000,-472.225,0.00015,2]
[423429349,1780109443000,-1074.04066854,0.00014997,2]
[423429361,1780109444000,-4297.31,0.00014999,2]
[423429359,1780109444000,-3829.33900376,0.00014999,2]
[423429360,1780109444000,-4297.31,0.00014999,2]
[423429364,1780109444000,-4297.31,0.00014999,2]
[423429363,1780109444000,-4297.31,0.00014999,2]
[423429362,1780109444000,-4297.31,0.00014999,2]
[423429372,1780109444000,-1000.0,0.00014999,2]
[423429368,1780109444000,-757731.03278984,0.00015,2]